Cogmind - Beta 15 @@@ ROGUE MODE // 2025.06.26 @ 20:03:25 Player: Cracklepappy Result: Self-destructed Performance ------------- Evolutions (4) 2000 Regions Visited (13) 2600 Robots Destroyed (390) 1950 Value Destroyed (13079) 13079 Prototype IDs (20) 400 Alien Tech Used (0) 0 Bonus (4465) 4465 TOTAL SCORE: 24494 Bonus ------- High Alert Combat Kills 2830 Follower Combat Kills 683 Entered Garrisons 400 Used RIF Installer 1500 Friendly Fire -948 Cogmind --------- Core Integrity 443/850 Matter 12/300 Energy 34/337 System Corruption 9% Temperature Warm (132) Movement Hovering (71) Location -6/Factory Parts ------- > --- POWER (2) -------- Angular-Ion Engine > --- PROPULSION (5) --- Hovering Gravmag-FC Exoskeleton > --- UTILITY (4) ------ Armored Scrap Engine Makeshift Microdissipator Network High-capacity Storage Unit > --- WEAPON (4) ------- (None) > --- INVENTORY (20) --- Cold Fusion Reactor Improved Cooling System Improved Cooling System Improved Cooling System IFF Parser Active Sensor Spoofer Hardened Medium Armor Plating Advanced Force Field Advanced Force Field Hacking Suite Improved Hacking Suite Relay Coupler [NC] (30) Relay Coupler [NC] (28) Long-range Missile Launcher Remote Datajack Improved Remote Datajack Falx Peak State ------------ > --- POWER ------------ Angular-Ion Engine > --- PROPULSION ------- Hovering Gravmag-FC Exoskeleton > --- UTILITY ---------- Armored Scrap Engine High-capacity Storage Unit Improved Hacking Suite > --- WEAPON ----------- Improved Remote Datajack Hvy. Laser Construct/C > --- INVENTORY -------- Cold Fusion Reactor Improved Cooling System Improved Cooling System Improved Cooling System Makeshift Microdissipator Network IFF Parser Active Sensor Spoofer Hardened Medium Armor Plating Advanced Force Field Advanced Force Field Improved Hacking Suite Relay Coupler [NC] Relay Coupler [NC] Relay Coupler [NC] Relay Coupler [NC] Relay Coupler [NC] Heavy Rocket Launcher Long-range Missile Launcher Falx [Rating: 82] Favorites ----------- Power Constructs Engine Constructs Power Core Fusion Compressor Propulsion Light Treads Treads Light Treads Wheel Armored Wheel Hover Unit Constructs Flight Unit Improved Flight Unit Utility Armored Scrap Engine Device Armored Scrap Engine Storage High-capacity Storage Unit Processor Transport Network Coupler Hackware Relay Coupler [NC] Protection Medium Armor Plating Weapon Improved Assault Rifle Energy Gun Medium Laser Energy Cannon Constructs Ballistic Gun Improved Assault Rifle Ballistic Cannon Battle Cannon Launcher Heavy Rocket Launcher Special Weapon Improved Remote Datajack Impact Weapon Powered Hammer Slashing Weapon Falx Special Melee Weapon Datajack Build | -11 -10 -10 -9 -9 -9 -9 -7 -7 -7 -7 -6 -6 -6 ------- Run | Yrd Mat Min Mat Sto Gar Rec Fac Was Fac Gar Fac Was Fac Slots Evolved 8 | . . . 2 . . . 4 . . . 2 . . Power 1 | . . . . . . . . . . . 1 . . Propulsion 3 | . . . 1 . . . 1 . . . 1 . . Utility 2 | . . . . . . . 2 . . . . . . Weapon 2 | . . . 1 . . . 1 . . . . . . Parts Attached 179 | 7 8 4 26 36 21 7 23 7 9 17 . . 14 Power 13 | 1 1 1 4 3 2 . . . . . . . 1 Engine 12 | 1 1 1 4 3 2 . . . . . . . . Core 1 | . . . . . . . . . . . . . 1 Reactor . | . . . . . . . . . . . . . . Propulsion 42 | 2 2 . 10 16 6 4 1 . . . . . 1 Treads 37 | 2 2 . 10 15 5 2 1 . . . . . . Leg . | . . . . . . . . . . . . . . Wheel 4 | . . . . . 1 2 . . . . . . 1 Hover . | . . . . . . . . . . . . . . Flight 1 | . . . . 1 . . . . . . . . . Utility 68 | 2 2 . 4 7 8 1 13 4 5 12 . . 10 Device 34 | 1 . . 2 5 2 1 6 3 3 8 . . 3 Storage 11 | 1 2 . . 2 . . 4 . . 2 . . . Processor 1 | . . . . . . . . . 1 . . . . Hackware 12 | . . . . . 2 . . . 1 2 . . 7 Protection 10 | . . . 2 . 4 . 3 1 . . . . . Artifact . | . . . . . . . . . . . . . . Weapon 56 | 2 3 3 8 10 5 2 9 3 4 5 . . 2 Energy Gun 5 | 1 1 1 . . . 1 1 . . . . . . Energy Cannon 2 | . . . 2 . . . . . . . . . . Ballistic Gun 24 | 1 1 1 4 8 4 1 1 1 1 1 . . . Ballistic Cannon 4 | . . 1 . . . . 2 1 . . . . . Launcher 8 | . 1 . 2 . . . 2 . . 1 . . 2 Special Weapon 4 | . . . . 1 . . 1 1 . 1 . . . Impact Weapon 4 | . . . . . 1 . 1 . 2 . . . . Slashing Weapon 3 | . . . . . . . . . 1 2 . . . Piercing Weapon . | . . . . . . . . . . . . . . Special Melee Weapon 2 | . . . . 1 . . 1 . . . . . . Unidentified Prototypes 7 | . . . 2 1 . 1 . . 2 1 . . . Parts Lost 20 | . 1 2 2 2 2 . . . 1 3 . . 7 Power 3 | . . 1 1 . . . . . . . . . 1 Propulsion 6 | . 1 . . 1 1 . . . . 1 . . 2 Utility 4 | . . . 1 1 . . . . . 2 . . . Weapon 7 | . . 1 . . 1 . . . 1 . . . 4 Highest Loss Streak 7 | . 1 2 1 2 1 . . . 1 1 . . 7 To Critical Strikes 1 | . . . . 1 . . . . . . . . . Average Backups 16 | 6 12 14 14 23 24 10 11 20 19 19 19 20 19 Power . | 1 1 1 . . . . 1 1 1 1 1 1 1 Propulsion 2 | 3 4 4 3 7 7 2 . . . . . . . Utility 7 | . 3 4 4 5 5 2 7 14 14 15 15 17 15 Weapon 4 | 1 3 4 5 8 9 4 2 4 3 2 2 1 1 Tool/Special . | . . . . . . . . . . . . . . Unused Backups 92 | . 3 1 10 10 4 30 9 3 1 2 1 . 18 Power 8 | . . 1 . 1 . 4 . . . . . . 2 Propulsion 21 | . 3 . 1 1 1 13 2 . . . . . . Utility 34 | . . . 6 . 2 3 4 2 1 2 . . 14 Weapon 28 | . . . 3 8 1 10 3 1 . . 1 . 1 Tool/Special 1 | . . . . . . . . . . . . . 1 Average Slot Usage (%) 71 | . 100 99 99 99 98 63 52 53 52 52 46 46 45 Engine 7 | . 14 13 10 11 11 10 3 . 2 1 . . 4 Core 1 | . . . . . . . 3 . 3 5 6 6 1 Treads 14 | . 28 28 32 32 32 9 2 2 . 3 . . 1 Wheel 1 | . . . . . . 7 . . . . . . . Device 9 | . 14 14 7 10 . 7 13 15 13 14 13 13 10 Storage 7 | . 14 14 11 11 11 3 7 7 7 7 6 6 6 Protection 2 | . . . 3 . 9 3 1 . . . . . . Energy Gun 1 | . 14 13 1 . . . . . . . . . . Energy Cannon 1 | . . . 7 1 . . 4 1 4 2 4 . 2 Ballistic Gun 11 | . 13 7 13 31 29 12 . . 1 . . . . Ballistic Cannon 3 | . . 7 9 . . 4 5 5 2 4 2 6 3 Impact Weapon 1 | . . . . . 1 . 3 6 3 . . . . Slashing Weapon 1 | . . . . . . . . . 1 4 6 6 4 Peak Build Rating 82 | 7 8 9 20 26 25 41 68 77 77 72 73 72 82 Average Rating 40 | 5 7 8 15 22 22 30 57 73 68 64 72 72 75 On Entrance 39 | . 7 8 9 20 23 24 38 67 77 66 72 72 72 Naked Turns . | . . . . . . . . . . . . . . Heaviest Build 106 | 12 27 29 41 104 106 104 66 82 82 75 67 67 98 Greatest Support 178 | 40 40 40 60 63 63 60 128 125 125 82 82 43 178 Greatest Overweight (x) 8 | . . . . 1 8 2 . . 1 3 1 1 1 Average Overweight (x) . | . . . . . 1 . . . . 1 . 1 . Largest Inventory Capacity 25 | 8 15 15 15 25 25 25 20 20 20 20 20 20 20 Average Capacity 17 | 7 12 15 15 24 25 11 14 20 20 20 20 20 20 Most Carried 25 | 8 15 15 15 25 25 25 20 20 20 20 20 20 20 Average Carried 17 | 6 12 14 14 23 24 10 12 19 19 19 19 20 19 Final Capacity 25 | 8 15 15 15 25 25 5 20 20 20 20 20 20 20 Final Carried 25 | 8 15 15 15 25 25 5 20 20 20 20 20 20 17 Scrap Engine Consumption 403 | . . . . . . 80 64 30 71 69 2 . 87 Constructs Created 3 | . . . . . . 3 . . . . . . . Constructs Modified 178 | . . . . . . 32 21 17 32 32 3 . 41 Class Distribution -------------------- 33% | Construct 18% | Bothacker-Construct 9% | Tank 8% | Mutant 6% | Scavenger-Mutant 6% | Scavenger-Gunner 6% | Gunner 4% | Scavenger-Tank 4% | Commander-Tank Dominant Class ---------------- Scavenger-Mutant | -10/Materials Mutant | -10/Mines Gunner | -9/Materials Scavenger-Gunner | -9/Storage Tank | -9/Garrison Construct | -9/Recycling Construct | -7/Factory Construct | -7/Waste Construct | -7/Factory Bothacker-Construct | -7/Garrison Bothacker-Construct | -6/Factory Bothacker-Construct | -6/Waste Bothacker-Construct | -6/Factory Resources | -11 -10 -10 -9 -9 -9 -9 -7 -7 -7 -7 -6 -6 -6 ----------- Run | Yrd Mat Min Mat Sto Gar Rec Fac Was Fac Gar Fac Was Fac Matter Collected 13064 | 290 575 49 1244 1642 1533 1055 1315 702 264 2183 . . 2212 Remotely 631 | . . . . . . . . . . 631 . . . Salvage Created 17388 | 175 706 89 1588 1880 1229 1477 1517 1723 1783 1427 . . 3794 Parts 863 | 13 50 11 122 113 84 56 87 29 104 54 . . 140 Haulers Intercepted 25 | . 2 . 5 6 . . 3 . 6 . . . 3 Recyclers Shooed 17 | . 3 . 2 2 . 3 1 . 1 . . . 5 Parts Field Recycled . | . . . . . . . . . . . . . . Retrieved Matter . | . . . . . . . . . . . . . . Parts Self-Destructed . | . . . . . . . . . . . . . . Prevented . | . . . . . . . . . . . . . . Kills | -11 -10 -10 -9 -9 -9 -9 -7 -7 -7 -7 -6 -6 -6 ------- Run | Yrd Mat Min Mat Sto Gar Rec Fac Was Fac Gar Fac Was Fac Combat Hostiles Destroyed 341 | . 17 3 46 25 35 4 18 6 23 121 . . 43 Melee 5 | . . . . . . . . . . 4 . . 1 Guns 88 | . 15 3 7 24 35 4 . . . . . . . Cannons 170 | . . . 20 1 . . 18 6 21 81 . . 23 AOE 75 | . 2 . 19 . . . . . 2 35 . . 17 Classes Destroyed 24 | 3 5 . 4 . 3 3 1 1 1 3 . . . Worker 15 | 1 1 2 2 1 . . 4 . 4 . . . . Builder 25 | . . . 4 1 . 5 7 . 3 . . . 5 Tunneler 9 | 4 . 1 . . . . . . 2 . . . 2 Hauler 25 | . 2 . 5 6 . . 3 . 6 . . . 3 Recycler 34 | 1 . . 1 5 . 9 2 . 2 2 . . 12 Mechanic 1 | . 1 . . . . . . . . . . . . Operator 2 | . . . . . . . 1 . . . . . 1 Watcher 16 | . 1 . 5 2 . . 2 . 4 . . . 2 Swarmer 65 | . 6 2 13 3 12 1 . . 6 11 . . 11 Cutter 5 | . . . . . . . . . 2 3 . . . Grunt 90 | . 11 1 20 9 9 . 12 . 3 8 . . 17 Brawler 7 | . . . 1 . 2 1 1 . . 1 . . 1 Duelist 4 | . . . . . 3 . . . . 1 . . . Protector 2 | . . . 2 . . . . . . . . . . Sentry 48 | . . . 10 13 6 2 4 . 5 4 . . 4 Demolisher 1 | . . . . . 1 . . . . . . . . Specialist 1 | . . . . . . . . . . 1 . . . Hunter 9 | . . . . . . 2 1 . 2 1 . . 3 Programmer 19 | . . . . . 2 . 1 . 5 4 . . 7 Behemoth 1 | . . . . . . . . . . 1 . . . Compactor 6 | . . . . . . . . 6 . . . . . Scientist 2 | . . . . . . 2 . . . . . . . Scrapper 1 | . . . . . . 1 . . . . . . . Assembled 86 | . . . . . . . . . . 86 . . . Wasp 2 | . . . . . . . . 1 1 . . . . Martyr 2 | . . . . . . . . 2 . . . . . Best Kill Streak 13 | 4 4 2 13 8 4 3 11 4 6 13 . . 12 Combat Bots Only 13 | . 3 1 7 3 4 1 3 4 3 13 . . 5 Max Kills in Single Turn 7 | 1 2 2 4 2 2 2 7 1 3 3 . . 4 Gunslinging 1 | . 1 . . 1 1 . . . . . . . . Exploded 4 | . 2 . 3 . . . . . 1 3 . . 4 Melee 1 | . . . . . . . . . . 1 . . 1 Uniques/NPCs Destroyed . | . . . . . . . . . . . . . . Combat | -11 -10 -10 -9 -9 -9 -9 -7 -7 -7 -7 -6 -6 -6 -------- Run | Yrd Mat Min Mat Sto Gar Rec Fac Was Fac Gar Fac Was Fac Hostile Shots Fired 1467 | . 75 14 142 134 117 16 176 . 146 275 6 . 366 Missed 449 | . 20 3 37 35 35 5 72 . 55 87 3 . 97 Hits 1018 | . 55 11 105 99 82 11 104 . 91 188 3 . 269 Melee 21 | . . . . . 4 . . . 1 16 . . . Projectile 997 | . 55 11 105 99 78 11 104 . 90 172 3 . 269 AOE 8 | . . . . . 5 . . . . 3 . . . Critical Strikes 25 | . 1 . . 5 2 3 3 . 3 5 . . 3 Damage Taken 14090 | . 583 116 1246 1364 1196 249 1248 . 1440 2800 99 . 3749 Core 1263 | . 90 . 140 114 83 . 92 . 138 199 5 . 402 Absorbed by Shields 671 | . . . . . 33 17 64 . . 557 . . . Regen/Repaired (Parts) 5418 | . 174 . 121 . . . 797 33 1224 1694 83 . 1292 Core Remaining (%) 54 | 100 . 64 . . . 15 . . . 38 . . . Volleys Fired 1028 | 25 73 15 84 95 81 64 79 33 88 226 2 . 163 Largest 3 | 2 2 2 3 3 3 3 1 1 2 1 1 . 1 Hottest 400 | 70 70 60 159 114 69 98 108 46 150 113 113 . 400 Shots Fired 1641 | 50 141 29 233 265 227 102 79 33 91 227 2 . 162 Gun 893 | 50 138 29 107 256 227 83 . . 3 . . . . Cannon 602 | . . . 104 6 . 19 74 30 79 187 1 . 102 Launcher 97 | . 3 . 22 . . . 4 . . 40 . . 28 Special 49 | . . . . 3 . . 1 3 9 . 1 . 32 Kinetic 1093 | 25 70 15 157 256 227 98 19 . 64 149 1 . 12 Thermal 341 | 25 42 . 54 9 . 4 55 30 14 38 . . 70 Explosive 97 | . 3 . 22 . . . 4 . . 40 . . 28 Electromagnetic 64 | . 26 14 . . . . . . 4 . . . 20 Robot Hit Streak 23 | 11 13 3 11 12 23 8 14 13 10 13 7 . 18 Robot Miss Streak 10 | 4 4 7 4 4 3 3 5 2 5 10 . . 5 Penetration Max 1 | . . . . . . . . . 1 1 . . . Secondary Targets 15 | . 1 . . 7 7 . . . . . . . . Max Gunslinging Chain 1 | . 1 . . 1 1 . . . . . . . . Shots Hit Robots 1091 | 29 90 10 126 172 150 65 68 36 66 158 1 . 120 Core Hits 624 | 11 41 6 88 63 56 35 45 17 40 141 . . 81 Critical Kills 1 | . . . . . . . . 1 . . . . . Critical Parts Destroyed 8 | . 1 1 . . 2 1 3 . . . . . . Critical Strikes 22 | . 7 1 4 . 2 1 4 1 . 1 . . 1 Burn 6 | . 5 . . . . . 1 . . . . . . Destroy 5 | . 1 1 . . 2 1 . . . . . . . Blast 5 | . . . 4 . . . . . . 1 . . . Corrupt 1 | . 1 . . . . . . . . . . . . Smash 4 | . . . . . . . 3 1 . . . . . Sever 1 | . . . . . . . . . . . . . 1 Melee Attacks 125 | . . . . 1 21 1 15 4 4 55 3 . 21 Impact 46 | . . . . . 13 1 15 4 2 11 . . . Slashing 70 | . . . . . . . . . 2 44 3 . 21 Piercing . | . . . . . . . . . . . . . . Sneak Attacks 27 | . . . . 1 6 1 4 4 1 1 . . 9 Combat Hostiles . | . . . . . . . . . . . . . . Follow-up Attacks . | . . . . . . . . . . . . . . Damage Inflicted 48271 | 302 1164 115 4422 2718 2220 1609 5102 3088 4599 12461 . . 10471 Guns 7861 | 300 1005 103 615 2668 2220 950 . . . . . . . Cannons 27272 | . . . 1436 41 . 554 3474 2777 4036 8738 . . 6216 Explosions 9938 | . 137 . 2357 . . . 1016 . 456 2763 . . 3209 Melee 3141 | . . . . . . 105 612 311 107 960 . . 1046 Ramming 59 | 2 22 12 14 9 . . . . . . . . . Kinetic 19818 | 112 317 65 1393 2668 2220 1462 706 . 3115 6976 . . 784 Thermal 14224 | 188 377 . 658 41 . 42 2768 2777 1071 1953 . . 4349 Explosive 9187 | . 137 . 2357 . . . 1016 . . 2572 . . 3105 Electromagnetic 1842 | . 311 38 . . . . . . 306 . . . 1187 Impact 1135 | . . . . . . 105 612 311 107 . . . . Slashing 2006 | . . . . . . . . . . 960 . . 1046 Piercing . | . . . . . . . . . . . . . . Highest Corruption 11 | . . . 6 9 10 11 1 1 4 4 . 6 9 Average Corruption 7 | . . . 4 7 9 10 1 1 2 4 . 6 7 Corruption Purged 1 | . . . . . . . . 1 . . . . . Corruption Blocked . | . . . . . . . . . . . . . . Effects 670 | . . . 48 71 136 239 3 1 18 59 . 3 92 Message Errors 181 | . . . 12 18 41 65 . 1 3 16 . 2 23 Matter Fused 155 | . . . 7 18 28 56 . . 6 12 . 1 27 Heat Flow Errors 90 | . . . 10 2 21 36 2 . 3 7 . . 9 Energy Discharges 63 | . . . 6 9 10 23 . . 1 4 . . 10 Parts Rejected 8 | . . . 1 1 . . . . . 6 . . . Parts Fused 5 | . . . 1 1 1 . . . 1 1 . . . Data Loss (minor) 80 | . . . 7 8 14 31 . . 1 6 . . 13 Data Loss (major) 29 | . . . 1 3 6 9 . . 1 3 . . 6 Misfires 27 | . . . 1 2 10 11 . . 2 1 . . . Alerts 17 | . . . . 1 2 7 1 . . 3 . . 3 Weapon Failures 15 | . . . 2 8 3 1 . . . . . . 1 Overload Shots . | . . . . . . . . . . . . . . Overflow Damage 3715 | . 22 . 119 . . 119 612 156 510 986 . . 1191 Projectiles 2548 | . . . . . . 54 291 58 399 813 . . 933 Explosions 487 | . 22 . 119 . . . 19 . 44 135 . . 148 Melee 680 | . . . . . . 65 302 98 67 38 . . 110 Knockbacks 54 | . . . 4 . . 4 6 2 12 24 . . 2 Impact 4 | . . . . . . . 2 1 1 . . . . Kinetic 48 | . . . 4 . . 4 4 . 11 23 . . 2 Secondary 2 | . . . . . . . . 1 . 1 . . . Self-Inflicted Damage 1076 | . . . 49 . . . . . 104 513 . . 410 Shots 29 | . . . 1 . . . . . 3 13 . . 12 Rammed 14 | 1 6 1 5 1 . . . . . . . . . Targets Rammed 18 | 1 7 3 5 2 . . . . . . . . . Kicked . | . . . . . . . . . . . . . . Crushed 4 | . 1 2 . 1 . . . . . . . . . Highest Temperature 2312 | 40 298 40 351 114 283 334 242 40 241 360 57 . 2312 Average Temperature 97 | 19 59 22 85 21 79 94 67 22 58 75 29 . 218 Received Heat Transfer 3662 | . 270 18 372 504 201 131 603 . 396 519 12 . 636 Effects 24 | . . . 5 . . . . . . . . . 19 Shutdowns 6 | . . . . . . . . . . . . . 6 Energy Bleed 5 | . . . 1 . . . . . . . . . 4 Interference 6 | . . . 4 . . . . . . . . . 2 Short Circuit 2 | . . . . . . . . . . . . . 2 Damage (minor) 1 | . . . . . . . . . . . . . 1 Damage (major) 3 | . . . . . . . . . . . . . 3 Damage (core) 1 | . . . . . . . . . . . . . 1 Siege Activations . | . . . . . . . . . . . . . . Martial Activations . | . . . . . . . . . . . . . . Shielding Activations . | . . . . . . . . . . . . . . Robots Disrupted 1 | . 1 . . . . . . . . . . . . Combat Hostiles 1 | . 1 . . . . . . . . . . . . Robots Corrupted 8 | . . . . . . . 3 2 1 . . . 2 Combat Hostiles 2 | . . . . . . . . . . . . . 2 Parts Fried 22 | . 2 . . . . 1 3 2 1 . . . 13 Impact Corruptions 20 | . . . . . . 2 12 3 3 . . . . Robots Melted 1 | . . . . . . . . . . 1 . . . Combat Hostiles 1 | . . . . . . . . . . 1 . . . Parts Melted 16 | . 3 . . . . 1 3 1 1 5 . . 2 Heat Transferred 11434 | 555 1480 . 1295 74 . 111 1831 2425 572 1546 . . 1545 Parts Sabotaged . | . . . . . . . . . . . . . . Parts Stolen . | . . . . . . . . . . . . . . Parts Stripped . | . . . . . . . . . . . . . . Power Chain Reactions 7 | . . . . . . . . . 3 3 . . 1 Alert | -11 -10 -10 -9 -9 -9 -9 -7 -7 -7 -7 -6 -6 -6 ------- Run | Yrd Mat Min Mat Sto Gar Rec Fac Was Fac Gar Fac Was Fac Maximum Alert Level 5 | . 1 . 3 2 5 4 3 1 3 5 5 3 4 Low Security (%) 22 | 100 96 100 42 . . . . 86 10 . . . 35 Level 1 16 | . 3 . 44 98 7 . . 13 36 . . . 21 Level 2 26 | . . . 9 1 13 71 52 . 29 . . 45 19 Level 3 16 | . . . 4 . 24 22 47 . 24 10 . 54 22 Level 4 4 | . . . . . 15 6 . . . 9 . . . Level 5 13 | . . . . . 39 . . . . 80 100 . . High Security . | . . . . . . . . . . . . . . Max Security . | . . . . . . . . . . . . . . Peak Influence 3599 | 10 237 87 799 409 2860 1287 897 313 1064 3599 2086 717 1248 Initial 1889 | . . 87 . 332 231 1287 764 313 . 742 1889 717 480 Average 743 | 1 46 13 261 292 1449 711 680 60 462 2248 2016 702 413 Influence Increases 15089 | 30 659 164 1381 814 2649 473 1485 11 2174 2917 282 . 2050 Destroy 0b10 Robot/C 5320 | . 340 80 880 500 720 120 380 . 680 720 40 . 860 Destroy 0b10 Robot/NC 700 | 30 25 15 95 75 . 105 95 . 120 10 5 . 125 Destroy Leader 1104 | . 76 20 230 196 10 . 120 . 210 30 2 . 210 Allied During Kill 457 | . . 4 . . 8 37 6 . 368 6 4 . 24 Successful Hack 298 | . 27 . 3 9 28 40 17 . 57 14 . . 103 Select Force Hacks 280 | . 110 . . . . 150 20 . . . . . . Disable Machine 645 | . 15 . 15 30 . 15 60 . 225 45 120 . 120 Anti-Garrison Action 3450 | . . . . . 1750 . . . . 1550 . . 150 Destroy Structure 1160 | . 21 . 128 4 88 6 42 11 79 482 36 . 263 Advance Influence 550 | . . . . . . . 550 . . . . . . Partial Spotted 150 | . . . . . . . 30 . 60 15 15 . 30 Lose Combat Pursuer 975 | . 45 45 30 . 45 . 165 . 375 45 60 . 165 Influence Decreases 13861 | 30 433 390 592 1247 145 2823 1098 908 1114 378 1830 1364 1509 Entered New Map 6743 | . . 139 . 457 125 1573 296 584 . 318 1710 1334 207 Time Decay 4848 | 30 423 171 582 610 . 770 482 304 624 . 100 30 722 Search Patrol Dispatched 150 | . . . . . . . 150 . . . . . . Lost Part 190 | . 10 20 10 20 20 . . . 10 30 . . 70 Lost Ally 580 | . . 60 . 10 . 180 20 20 180 30 20 . 60 Purge Threat 1350 | . . . . 150 . 300 150 . 300 . . . 450 Squads Dispatched 66 | . 5 . 7 4 . . 14 . 17 . 1 . 18 Investigation 14 | . 4 . 3 1 . . 4 . . . . . 2 Extermination 14 | . . . . . . . 3 . 4 . . . 7 Reinforcement 20 | . 1 . 2 1 . . 4 . 6 . 1 . 5 Assault 7 | . . . 2 . . . 2 . 1 . . . 2 Garrison 11 | . . . . 2 . . 1 . 6 . . . 2 Intercept . | . . . . . . . . . . . . . . Searches Triggered 1 | . . . . . . . 1 . . . . . . Construction Impeded 5 | . . . 1 . . . 1 . 1 . . . 2 Haulers Reinforced 5 | . . . . . . . 1 . 2 . . . 2 Active Scanning Responses . | . . . . . . . . . . . . . . Cargo Convoy Interrupts 1 | . . . . . . . . . 1 . . . . Stealth | -11 -10 -10 -9 -9 -9 -9 -7 -7 -7 -7 -6 -6 -6 --------- Run | Yrd Mat Min Mat Sto Gar Rec Fac Was Fac Gar Fac Was Fac Distress Signals 18 | . 4 . 4 2 . . 2 . 2 . . . 4 Communications Jammed . | . . . . . . . . . . . . . . Distress Signals . | . . . . . . . . . . . . . . Times Spotted 497 | . 33 6 60 31 39 9 50 6 63 129 3 6 62 Peak Tracking Total 10 | . 3 3 7 4 5 3 10 3 5 7 4 6 5 Tactical Retreats 42 | . 2 2 2 . 2 1 6 . 10 10 2 1 4 Traps | -11 -10 -10 -9 -9 -9 -9 -7 -7 -7 -7 -6 -6 -6 ------- Run | Yrd Mat Min Mat Sto Gar Rec Fac Was Fac Gar Fac Was Fac Traps Triggered 39 | . 1 . 5 2 9 . 3 . 5 11 1 . 2 Indirectly . | . . . . . . . . . . . . . . Trap Hack Attempts 4 | . . . . 4 . . . . . . . . . Triggered . | . . . . . . . . . . . . . . Disarmed . | . . . . . . . . . . . . . . Reprogrammed 2 | . . . . 2 . . . . . . . . . Reused . | . . . . . . . . . . . . . . Traps Extracted . | . . . . . . . . . . . . . . Installed . | . . . . . . . . . . . . . . Triggered . | . . . . . . . . . . . . . . Machines | -11 -10 -10 -9 -9 -9 -9 -7 -7 -7 -7 -6 -6 -6 ---------- Run | Yrd Mat Min Mat Sto Gar Rec Fac Was Fac Gar Fac Was Fac Machines Disabled 56 | . 1 . 1 2 7 1 4 . 15 8 8 . 9 Max in Single Turn 4 | . 1 . 1 1 2 1 1 . 3 1 . . 4 Garrison Access 3 | . . . . . . . . . 2 . . . 1 Garrison Relay 10 | . . . . . 5 . . . . 5 . . . Phase Generator 1 | . . . . . 1 . . . . . . . . Machines Repaired . | . . . . . . . . . . . . . . Machines Dismantled . | . . . . . . . . . . . . . . Machines Sabotaged 1 | . 1 . . . . . . . . . . . . Overloaded Fab Kills . | . . . . . . . . . . . . . . Hacking | -11 -10 -10 -9 -9 -9 -9 -7 -7 -7 -7 -6 -6 -6 --------- Run | Yrd Mat Min Mat Sto Gar Rec Fac Was Fac Gar Fac Was Fac Machines Accessed 90 | . 11 . 11 8 4 13 8 . 13 1 1 . 20 Terminals 58 | . 8 . 10 7 4 6 6 . 6 1 . . 10 Fabricators 8 | . . . . . . . 1 . 1 . 1 . 5 Repair Stations 5 | . 1 . 1 . . . . . 1 . . . 2 Recycling Units 9 | . 2 . . . . 6 . . . . . . 1 Scanalyzers 3 | . . . . . . . . . 2 . . . 1 Garrison Access 6 | . . . . 1 . . 1 . 3 . . . 1 Total Hacks 238 | . 30 . 28 17 5 59 19 . 25 3 3 . 49 Successful 101 | . 19 . 3 5 3 25 10 . 12 1 . . 23 Failed 136 | . 10 . 25 12 2 34 9 . 13 2 3 . 26 Catastrophic 37 | . 2 . 7 8 2 6 1 . 1 . . . 10 Database Lockouts 1 | . 1 . . . . . . . . . . . . Manual 110 | . 13 . 23 14 . 26 7 . 7 . . . 20 Terminals 153 | . 24 . 26 13 5 26 15 . 13 3 . . 28 Fabricators 20 | . . . . . . . 1 . 3 . 3 . 13 Repair Stations 12 | . 4 . 2 . . . . . 1 . . . 5 Recycling Units 34 | . 2 . . . . 31 . . . . . . 1 Scanalyzers 5 | . . . . . . . . . 4 . . . 1 Garrison Access 12 | . . . . 4 . . 3 . 4 . . . 1 Terminal Hacks 47 | . 7 . 1 4 3 8 5 . 4 1 . . 14 Record 3 | . 3 . . . . . . . . . . . . Part Schematic 1 | . . . . . . 1 . . . . . . . Robot Schematic 1 | . 1 . . . . . . . . . . . . Robot Analysis 3 | . 2 . . . . 1 . . . . . . . Prototype ID Bank 5 | . 1 . . . . 2 1 . 1 . . . . Open Door 3 | . . . . 2 1 . . . . . . . . Open DSF 1 | . . . . . . . 1 . . . . . . Branch Access Points 1 | . . . 1 . . . . . . . . . . Emergency Access Points 2 | . . . . . 1 . . . . 1 . . . Terminal Index 1 | . . . . . . . . . . . . . 1 Unreport Threat 9 | . . . . 1 . 2 1 . 2 . . . 3 Locate Traps 6 | . . . . . . . 1 . . . . . 5 Surveillance Status 1 | . . . . . . . . . . . . . 1 Recall Reinforcements 1 | . . . . . . . . . . . . . 1 Hauler Manifests 3 | . . . . . . . 1 . 1 . . . 1 Registered Components 1 | . . . . . . . . . . . . . 1 Zone Layout 2 | . . . . 1 . . . . . . . . 1 Garrison Registry 1 | . . . . . 1 . . . . . . . . Release Object 2 | . . . . . . 2 . . . . . . . Fabricator Hacks 2 | . . . . . . . . . . . . . 2 Network Status 1 | . . . . . . . . . . . . . 1 Build 1 | . . . . . . . . . . . . . 1 Repair Station Hacks 8 | . 4 . 2 . . . . . . . . . 2 Scan Component 4 | . 2 . 1 . . . . . . . . . 1 Repair 4 | . 2 . 1 . . . . . . . . . 1 Recycling Unit Hacks 2 | . . . . . . 2 . . . . . . . Retrieve Components 2 | . . . . . . 2 . . . . . . . Scanalyzer 2 | . . . . . . . . . 2 . . . . Insert Component 1 | . . . . . . . . . 1 . . . . Analyze 1 | . . . . . . . . . 1 . . . . Garrison Access Hacks 7 | . . . . 1 . . 2 . 3 . . . 1 Unlock Access 4 | . . . . 1 . . 1 . 1 . . . 1 Seal Access 2 | . . . . . . . . . 2 . . . . Coupler Status 1 | . . . . . . . 1 . . . . . . Unauthorized Hacks 33 | . 8 . . . . 15 3 . 3 . . . 4 Terminals 7 | . 6 . . . . . 1 . . . . . . Assimilate 1 | . . . . . . . 1 . . . . . . Skim 5 | . 5 . . . . . . . . . . . . Sabotage 1 | . 1 . . . . . . . . . . . . Fabricators 4 | . . . . . . . 1 . 1 . . . 2 Liberate 1 | . . . . . . . . . . . . . 1 Haulers 2 | . . . . . . . . . 1 . . . 1 Download 1 | . . . . . . . 1 . . . . . . Repair Stations 2 | . . . . . . . . . 1 . . . 1 Mechanics 2 | . . . . . . . . . 1 . . . 1 Recycling Units 18 | . 2 . . . . 15 . . . . . . 1 Reject 7 | . . . . . . 6 . . . . . . 1 Mask 4 | . . . . . . 4 . . . . . . . Tunnel 7 | . 2 . . . . 5 . . . . . . . Scanalyzers . | . . . . . . . . . . . . . . Garrison Access 2 | . . . . . . . 1 . 1 . . . . Watchers 2 | . . . . . . . 1 . 1 . . . . Data Cores Recovered 1 | . . . . . . . . . 1 . . . . Used . | . . . . . . . . . . . . . . Hacking Detections 74 | . 7 . 11 7 2 11 6 . 10 1 1 . 18 Full Trace Events 12 | . . . 2 . . 6 1 . . 1 . . 2 Feedback Events 1 | . . . . . . 1 . . . . . . . Corruption 1 | . . . . . . 1 . . . . . . . Feedback Blocked . | . . . . . . . . . . . . . . Robot Schematics Acquired 2 | . 1 . . . . . 1 . . . . . . Robots Built . | . . . . . . . . . . . . . . Authchips . | . . . . . . . . . . . . . . Time . | . . . . . . . . . . . . . . Total Robot Build Rating . | . . . . . . . . . . . . . . Part Schematics Acquired 2 | . . . . . . 1 . . 1 . . . . Parts Built 2 | . . . . . . . . . . . . . 2 Authchips . | . . . . . . . . . . . . . . Time 64 | . . . . . . . . . . . . . 64 Total Part Build Rating 16 | . . . . . . . . . . . . . 16 Parts Repaired 4 | . 2 . 1 . . . . . . . . . 1 Time 156 | . 52 . 26 . . . . . . . . . 78 Parts Recycled . | . . . . . . . . . . . . . . Recycled Matter . | . . . . . . . . . . . . . . Retrieved Matter . | . . . . . . . . . . . . . . Retrieved Components 13 | . . . . . . 13 . . . . . . . Parts Scanalyzed 1 | . . . . . . . . . 1 . . . . Part Schematics Acquired 1 | . . . . . . . . . 1 . . . . Parts Damaged . | . . . . . . . . . . . . . . Bothacking | -11 -10 -10 -9 -9 -9 -9 -7 -7 -7 -7 -6 -6 -6 ------------ Run | Yrd Mat Min Mat Sto Gar Rec Fac Was Fac Gar Fac Was Fac Used RIF Installer 3 | . . . . . 2 . . . . 1 . . . Zone Cloak 1 | . . . . . 1 . . . . . . . . Program Shield 1 | . . . . . . . . . . 1 . . . Robots Hacked 23 | . . . . 1 3 . 1 2 4 . 1 . 11 Non-combat 19 | . . . . 1 1 . 1 . 4 . 1 . 11 Combat 4 | . . . . . 2 . . 2 . . . . . Robot Hacks Applied 29 | . . . . 1 3 . 1 2 4 . 1 . 17 parse_system 7 | . . . . 1 1 . . 2 1 . . . 2 start_evac 1 | . . . . . . . . . . . . . 1 find_chute 2 | . . . . . . . 1 . . . 1 . . locate_stockpiles 1 | . . . . . . . . . . . . . 1 block_reporting 1 | . . . . . . . . . . . . . 1 map_route 1 | . . . . . . . . . . . . . 1 overload_power 1 | . . . . . . . . . . . . . 1 reboot_system 1 | . . . . . 1 . . . . . . . . formatsys_low 13 | . . . . . . . . . 3 . . . 10 formatsys_high 1 | . . . . . 1 . . . . . . . . Relay Couplers Released 37 | . . . . . 17 . . . . 17 . . 3 Machine Destruction 37 | . . . . . 17 . . . . 17 . . 3 Attached 10 | . . . . . 2 . . . 1 2 . . 5 Fabnet Peak Effective % . | . . . . . . . . . . . . . . Robots Rewired 12 | . . . . . 2 10 . . . . . . . Allies Hacked 1 | . . . . . . . . . 1 . . . . Hacks Repelled . | . . . . . . . . . . . . . . Allies | -11 -10 -10 -9 -9 -9 -9 -7 -7 -7 -7 -6 -6 -6 -------- Run | Yrd Mat Min Mat Sto Gar Rec Fac Was Fac Gar Fac Was Fac Total Allies 55 | . . 3 . . 5 10 1 19 3 2 . . 12 Largest Group 18 | . . 3 . . 5 11 2 18 15 3 1 . 8 Highest-Rated Group 434 | . . 40 . . 96 143 35 434 350 157 95 . 175 Highest-Rated Ally 95 | . . 16 . . 25 25 25 35 31 95 95 . 29 Total Orders 27 | . . . . 6 2 7 . . . 4 . . 8 STAY 14 | . . . . . 1 5 . . . 2 . . 6 FOLLOW 4 | . . . . . 1 2 . . . . . . 1 AID 2 | . . . . . . . . . . 1 . . 1 DROP 1 | . . . . . . . . . . 1 . . . EXPLORE 5 | . . . . 5 . . . . . . . . . RETURN 1 | . . . . 1 . . . . . . . . . Ally Attacks 226 | . . 16 . . 5 24 5 15 139 9 4 . 9 Total Damage 4779 | . . 213 . . 108 504 68 278 2075 406 939 . 188 Kills 29 | . . 1 . . 1 7 1 . 14 2 3 . . Allies Corrupted 2 | . . . . . . . . 2 . . . . . Allies Melted . | . . . . . . . . . . . . . . Intel | -11 -10 -10 -9 -9 -9 -9 -7 -7 -7 -7 -6 -6 -6 ------- Run | Yrd Mat Min Mat Sto Gar Rec Fac Was Fac Gar Fac Was Fac Active Infowar (turns) 3495 | 175 2014 952 42 2 1 . 2 . 304 1 . . 2 Sensors 4 | . . . . 2 . . . . . . . . 2 Terrain 2 | . . . . . . . 2 . . . . . . Seismic 3184 | 175 2014 952 42 . 1 . . . . . . . . T.N.C. 304 | . . . . . . . . . 304 . . . . Spoofing 1 | . . . . . . . . . . 1 . . . Robot Analysis Total 3 | . 2 . . . . 1 . . . . . . . Derelict Logs Recovered 2 | . . 2 . . . . . . . . . . . Drone Launches 6 | . . . . 6 . . . . . . . . . Drone Recoveries 5 | . . . . 5 . . . . . . . . . Exploration | -11 -10 -10 -9 -9 -9 -9 -7 -7 -7 -7 -6 -6 -6 ------------- Run | Yrd Mat Min Mat Sto Gar Rec Fac Was Fac Gar Fac Was Fac Turns Passed 30389 | 282 2014 952 2181 1989 3991 7143 1245 1637 2325 2919 207 74 3430 Spaces Moved 20008 | 123 923 557 1041 647 1491 4333 1320 1012 2625 2348 286 82 3220 Core 4 | 4 . . . . . . . . . . . . . Treads 8557 | 119 923 557 1041 647 1342 853 543 450 . 983 . . 1099 Legs 2684 | . . . . . . 863 338 562 673 . . . 248 Wheels 2419 | . . . . . 149 2066 8 . . 196 . . . Hover 3370 | . . . . . . . 78 . 1582 1022 . . 688 Flight 2974 | . . . . . . 551 353 . 370 147 286 82 1185 Fastest Speed 46 | 50 160 160 160 160 210 57 47 47 46 46 59 74 49 Average Speed 111 | 156 160 160 160 236 237 118 66 58 55 85 60 74 83 Slowest Speed 240 | 160 160 160 160 240 240 240 96 67 82 152 74 74 112 Overloaded Moves . | . . . . . . . . . . . . . . Propulsion Burnouts . | . . . . . . . . . . . . . . Robots Hopped 5 | . . . . . . 2 1 . . . . . 2 Potential Cave-ins 2 | . . . . . . . . . . 2 . . . Cave-ins Triggered . | . . . . . . . . . . . . . . Exploration Rate (%) 72 | 9 97 99 92 98 99 99 38 97 60 97 7 70 57 Regions Visited 13 Branch Regions 3 Pre-discovered Areas 10 | . 3 2 . . . 5 . . . . . . . Known Exits Taken 4 | . . 1 1 1 . . . . 1 . . . . Unknown Exits Taken 3 | 1 1 . . . . 1 . . . . . . . Scrap Searched 1 | . . 1 . . . . . . . . . . . Spaces Dug 155 | . . . . . . . 4 . 7 99 4 . 41 Terrain Destroyed 1292 | . 19 . 162 . 71 6 43 11 72 560 4 . 344 Melee 37 | . . . . . . . 4 . 3 23 3 . 4 Projectile 359 | . . . 11 . . 6 19 11 59 222 1 . 30 AOE 896 | . 19 . 151 . 71 . 20 . 10 315 . . 310 Terrain Rammed . | . . . . . . . . . . . . . . Walls Destroyed . | . . . . . . . . . . . . . . Machines Disabled . | . . . . . . . . . . . . . . Actions | -11 -10 -10 -9 -9 -9 -9 -7 -7 -7 -7 -6 -6 -6 --------- Run | Yrd Mat Min Mat Sto Gar Rec Fac Was Fac Gar Fac Was Fac Total 26523 | 164 1333 590 1383 906 1748 6285 1591 2027 3392 2921 312 95 3776 Wait 4331 | . 296 8 158 43 58 1659 75 950 645 106 13 14 306 Move 19989 | 122 922 556 1040 647 1490 4328 1318 1011 2624 2347 286 81 3217 Hop 4 | . . . . . . 2 1 . . . . . 1 Pick Up 193 | 9 16 2 23 27 17 25 35 4 5 14 3 . 13 Fast Attach 80 | 6 . 2 2 4 5 6 15 6 8 19 . . 7 Attach 29 | 1 1 1 4 5 3 4 3 1 2 3 . . 1 Detach 5 | . . . . . . 4 1 . . . . . . Swap 202 | . 8 1 37 37 35 2 15 6 6 22 2 . 31 Drop 270 | . 10 2 30 41 25 61 34 12 10 26 3 . 16 Fire 1028 | 25 73 15 84 95 81 64 79 33 88 226 2 . 163 Melee 125 | . . . . 1 21 1 15 4 4 55 3 . 21 Ram . | . . . . . . . . . . . . . . Kick . | . . . . . . . . . . . . . . Crush 18 | 1 7 3 5 2 . . . . . . . . . Escape Stasis 116 | . . . . . 13 . . . . 103 . . . Rewire 129 | . . . . . . 129 . . . . . . . Trap 4 | . . . . 4 . . . . . . . . . Miscellaneous . | . . . . . . . . . . . . . . Route ------- -11/Scrapyard -10/Materials (discovered 5 exits: *Mat x3 / [*Min] / [*Sub]) -10/Mines (discovered 3 exits: *Mat x2 / [*Sub]) -9/Materials (discovered 6 exits: *Mat x3 / *Min x2 / *Sto) -9/Storage (discovered 3 exits: *Mat / *Rec / Gar) -9/Garrison (discovered 3 exits: *Rec x3) -9/Recycling -7/Factory (discovered 3 exits: *Fac / [*Low] / Gar) -7/Waste -7/Factory (discovered 4 exits: *Fac x2 / [*Low] / Gar) -7/Garrison (discovered 3 exits: *Fac x3) -6/Factory (discovered 2 exits: [*Fac] / [*Low]) -6/Waste -6/Factory (discovered 5 exits: [*Fac x4] / [*Low]) History --------- Turn | Location | Event 8 | -11/Scrapyard | Discovered new exit (range 15) 283 | -11/Scrapyard | Entered Materials 317 | -10/Materials | Build established: Mutant 344 | -10/Materials | Central database locked down 405 | -10/Materials | Discovered new exit (range 16) 604 | -10/Materials | Discovered new exit (range 3) 843 | -10/Materials | Discovered new exit (range 10) 955 | -10/Materials | Build established: Scavenger-Mutant 955 | -10/Materials | Discovered new exit (range 13) 1003 | -10/Materials | Learned 4 Recycling zone layouts 1046 | -10/Materials | Loaded intel: 2 recycling unit locations 1080 | -10/Materials | Learned location of 2 exits from Subcaves 1116 | -10/Materials | Identified exit to Materials 1116 | -10/Materials | Learned location of 1 exit from Materials 1119 | -10/Materials | Learned location of 3 exits from Materials 1133 | -10/Materials | Learned location of 1 exit from Recycling 1145 | -10/Materials | Repaired Lgt. Treads 1172 | -10/Materials | Repaired Lgt. Treads 1190 | -10/Materials | Learned Materials recycling unit intel 2297 | -10/Materials | Entered Mines 2302 | -10/Mines | Assisted by bots powering up and referring to "LRC-V3" 2313 | -10/Mines | Learned location of Zion (-7) 2441 | -10/Mines | Discovered new exit (range 12) 2750 | -10/Mines | A weapon hastily lodged in a ceiling crevice suddenly fell to the ground 2889 | -10/Mines | Build established: Mutant 3249 | -10/Mines | Entered Materials 3249 | -9/Materials | Evolved 2 slots: Propulsion x1, Weapon x1 3250 | -9/Materials | Identified exit to Materials 3250 | -9/Materials | Identified exit to Mines 3250 | -9/Materials | Identified exit to Storage 3251 | -9/Materials | Loaded intel: 2 recycling unit locations 3736 | -9/Materials | Repaired Lgt. Treads 3811 | -9/Materials | Discovered exit to Materials (range 16) 3875 | -9/Materials | Build established: Scavenger-Tank 4519 | -9/Materials | Build established: Scavenger-Gunner 4974 | -9/Materials | Build established: Gunner 5249 | -9/Materials | First assault squad dispatched 5357 | -9/Materials | Destroyed 7 combat bots 5430 | -9/Materials | Entered Storage 5896 | -9/Storage | Build established: Scavenger-Gunner 6105 | -9/Storage | Core integrity fell below 50% 6863 | -9/Storage | Used back door to open Recycling access 6863 | -9/Storage | Discovered new exit (range 5) 7026 | -9/Storage | Garrison activated, responded to threat 7093 | -9/Storage | Discovered exit to Materials (range 20) 7328 | -9/Storage | Garrison activated, responded to threat 7372 | -9/Storage | Build established: Gunner 7419 | -9/Storage | Identified exit to Garrison 7419 | -9/Storage | Entered Garrison 7422 | -9/Garrison | Triggered checkpoint 7653 | -9/Garrison | Triggered checkpoint 7768 | -9/Garrison | Garrison Relay disabled 7933 | -9/Garrison | Triggered checkpoint 8083 | -9/Garrison | Triggered checkpoint 8105 | -9/Garrison | Build established: Tank 8183 | -9/Garrison | Triggered checkpoint 8360 | -9/Garrison | Discovered new exit (range 11) 8363 | -9/Garrison | Triggered checkpoint 8412 | -9/Garrison | System corruption reached 10% 8459 | -9/Garrison | Garrison Relay disabled 8622 | -9/Garrison | Phase Generator disabled 8739 | -9/Garrison | Installed Relay Interface Framework 8787 | -9/Garrison | Build established: Mutant 8879 | -9/Garrison | Expanded RIF knowledge: Zone Cloak 9058 | -9/Garrison | Triggered checkpoint 9231 | -9/Garrison | Triggered checkpoint 9238 | -9/Garrison | Build established: Tank 9270 | -9/Garrison | Core integrity fell below 20% 9295 | -9/Garrison | Garrison Relay disabled 9542 | -9/Garrison | Discovered new exit (range 8) 10179 | -9/Garrison | Triggered checkpoint 10197 | -9/Garrison | Discovered new exit (range 12) 10211 | -9/Garrison | Build established: Scavenger-Tank 10211 | -9/Garrison | Garrison Relay disabled 10280 | -9/Garrison | Discovered new exit (range 87) 10280 | -9/Garrison | Discovered new exit (range 58) 10280 | -9/Garrison | Discovered new exit (range 13) 10378 | -9/Garrison | Garrison Relay disabled 10890 | -9/Garrison | Rescued a captive Derelict 10892 | -9/Garrison | Rescued a captive Derelict 11307 | -9/Garrison | Build established: Tank 11410 | -9/Garrison | Entered Recycling 11410 | -9/Recycling | Accompanied by 5 allies 11411 | -9/Recycling | Identified exit to Scraptown 11956 | -9/Recycling | Build established: Commander-Tank 12367 | -9/Recycling | Discovered new exit (range 16) 12836 | -9/Recycling | Scanned before Scraplab entrance 12871 | -9/Recycling | Entered Scraplab 13014 | -9/Recycling | Angered Scraplab inhabitants 13110 | -9/Recycling | Lost 5 allies 13399 | -9/Recycling | Build established: Tank 13871 | -9/Recycling | Found Prototype Device 13871 | -9/Recycling | Identified Scrap Engine 14038 | -9/Recycling | Build established: Mutant 14511 | -9/Recycling | Build established: Construct 18553 | -9/Recycling | Entered Factory 18553 | -7/Factory | Accompanied by 2 allies 18553 | -7/Factory | Evolved 4 slots: Propulsion x1, Utility x2, Weapon x1 18633 | -7/Factory | Identified exit to DSF 18910 | -7/Factory | Identified exit to Garrison 18953 | -7/Factory | Search patrols dispatched 19340 | -7/Factory | Discovered new exit (range 7) 19353 | -7/Factory | First assault squad dispatched 19448 | -7/Factory | Discovered new exit (range 8) 19535 | -7/Factory | Garrison activated, responded to threat 19549 | -7/Factory | Allied Derelicts emerged from ambush trap array 19798 | -7/Factory | Sucked down chute 19798 | -7/Factory | Entered Waste 19799 | -7/Waste | Met a frightened Derelict 19802 | -7/Waste | Spotted C-40 Crusher 19803 | -7/Waste | Spotted C-40 Crusher 19806 | -7/Waste | Spotted C-40 Crusher 19817 | -7/Waste | Destroyed C-40 Crusher 19823 | -7/Waste | Destroyed C-40 Crusher 19838 | -7/Waste | Spotted C-40 Crusher 19843 | -7/Waste | Destroyed C-40 Crusher 19848 | -7/Waste | Destroyed C-40 Crusher 19886 | -7/Waste | Spotted C-40 Crusher 19903 | -7/Waste | Destroyed C-40 Crusher 19915 | -7/Waste | Spotted C-40 Crusher 19934 | -7/Waste | Destroyed C-40 Crusher 19947 | -7/Waste | Discovered new exit (range 12) 20316 | -7/Waste | Warlord forces began an assault 21435 | -7/Waste | Entered Factory 21435 | -7/Factory | Accompanied by 15 allies 21488 | -7/Factory | Discovered new exit (range 5) 21924 | -7/Factory | Lost 3 allies 21936 | -7/Factory | Garrison activated, responded to threat 21985 | -7/Factory | Identified exit to Garrison 22126 | -7/Factory | P-60 Hacker assimilated allied 7W-IDY(g) 22818 | -7/Factory | Cargo convoy interrupted 22841 | -7/Factory | Discovered new exit (range 7) 22879 | -7/Factory | Garrison activated, responded to threat 23007 | -7/Factory | Discovered new exit (range 14) 23435 | -7/Factory | First assault squad dispatched 23760 | -7/Factory | Entered Garrison 23760 | -7/Garrison | Accompanied by 3 allies 23798 | -7/Garrison | Triggered checkpoint 23839 | -7/Garrison | Garrison Relay disabled 24020 | -7/Garrison | Triggered checkpoint 24057 | -7/Garrison | Triggered checkpoint 24060 | -7/Garrison | Triggered checkpoint 24184 | -7/Garrison | Build established: Bothacker-Construct 24209 | -7/Garrison | Discovered new exit (range 15) 24221 | -7/Garrison | Assembled breached garrison interior 24258 | -7/Garrison | Expanded RIF knowledge: Program Shield 24300 | -7/Garrison | Garrison Relay disabled 24708 | -7/Garrison | Destroyed 13 combat bots 24782 | -7/Garrison | Discovered new exit (range 8) 24891 | -7/Garrison | Destroyed 11 combat bots 25037 | -7/Garrison | Destroyed 12 combat bots 25132 | -7/Garrison | Destroyed 11 combat bots 25304 | -7/Garrison | Destroyed 8 combat bots 25355 | -7/Garrison | Core integrity fell below 50% 25955 | -7/Garrison | Garrison Relay disabled 26004 | -7/Garrison | Discovered new exit (range 10) 26037 | -7/Garrison | Found embedded Infiltrators 26201 | -7/Garrison | Spotted B-75 Beast 26210 | -7/Garrison | Destroyed B-75 Beast 26210 | -7/Garrison | Garrison Relay disabled 26679 | -7/Garrison | Entered Factory 26679 | -6/Factory | Accompanied by 1 ally 26679 | -6/Factory | Evolved 2 slots: Power x1, Propulsion x1 26807 | -6/Factory | Discovered new exit (range 12) 26817 | -6/Factory | Discovered new exit (range 16) 26886 | -6/Factory | Sucked down chute 26886 | -6/Factory | Entered Waste 26890 | -6/Waste | Spotted C-40 Crusher 26901 | -6/Waste | EMP discharged 26905 | -6/Waste | Spotted C-40 Crusher 26912 | -6/Waste | Spotted C-40 Crusher 26913 | -6/Waste | Spotted C-40 Crusher 26914 | -6/Waste | Spotted C-40 Crusher 26925 | -6/Waste | Spotted C-40 Crusher 26938 | -6/Waste | Discovered new exit (range 11) 26960 | -6/Waste | Entered Factory 27091 | -6/Factory | Discovered new exit (range 5) 27107 | -6/Factory | Fabricated Adv. Force Field? 27295 | -6/Factory | Discovered new exit (range 16) 27908 | -6/Factory | Discovered new exit (range 15) 28272 | -6/Factory | Spotted B-75 Beast 28545 | -6/Factory | Discovered new exit (range 9) 28732 | -6/Factory | Identified exit to Garrison 29476 | -6/Factory | Discovered new exit (range 9) 29510 | -6/Factory | Build established: Construct 29828 | -6/Factory | Repaired Broken Imp. Remote Datajack 30390 | -6/Factory | Self-destructed Last Messages --------------- 30377_ Overheating: Energy bleed (-13). 30377_ The unstable cave ceiling collapses. 30377_ R-10 Processor collects Wheel. 30378_ Hvy. Rocket Launcher destroyed. 30380_ Overheating: Energy bleed (-11). 30381_ Hvy. Laser Construct/C destroyed. 30381_ Hvy. Laser Construct/C core remains intact and functional. 30382_ Power failure, Angular-Ion Engine shutdown. 30382_ Overheating: System interference. 30382_ Arm. Scrap Engine temporarily disabled. 30383_ W6VG9REBXC9A 88=2BLK 30383_ Y-54 Guardian destroyed. 30386_ The unstable cave ceiling collapses. 30387_ Hovering Gravmag-FC Exoskeleton destroyed. 30387_ Hovering Gravmag-FC Exoskeleton core remains intact and functional. 30387_ Hvy. Laser Construct/C destroyed. 30387_ Arm. Scrap Engine damaged due to network destabilization (-6). 30388_ The unstable cave ceiling collapses. 30388_ R-10 Processor collects Lgt. Treads. 30390_ R-10 Processor collects Imp. Heat Sink. Map ----- +----------------------------------------------------+ | ?????????????# ###########???????????????????? | | ?????????????# #?????????????????????????????? | | ?????????????# #?????????????????????????????? | | ?????????????# #?????????????????????????????? | | ?????????????# #?????????????????????????????? | | ?????????????# ^^ #?????????????????????????????? | | ?????????????# % #?????????????????????????????? | | ?????????????# %#?????????????????????????????? | | ?????????????# #?????????????????????????????? | | ?????????????# #?????????????????????????????? | | ?????????????# #????? ???????????????????????? | | ?????????????# #????? ???????????????????????? | | ?????????????# #?####;#??????????????????????? | | ?????????????# ### ######????????????????? | | ?????????????# # #????????????!???? | | ?????######### # #????????????????? | | ???? # #????????????????? | | ????""""""" # ###########??????? | | ???? # #??????? | | # """"""""" # #??????? | | ?? # !! #??????? | | #?""""""""" + + !!! """ #??????? | | # # # !!! """ #??????? | | # """"""""" # " Y """ #??????? | | #??? # ""G % ! #??????? | | #???""""""" # # @ R ##? ##?? | | #???? # # # ##R # ## # # # # | | #??? # % # | | #???########## # | | #????????????# % [ ## | | ############## ! ! ### | | % % % | | ################+ # #+## # # | | ?????????# # # # # | | ?????????# """"""" # # # # | | ####?????# """"""" # # | | #T ####### """"""" # ##### ### | | + """"""" # #????#### | | # # ##??????# | | #################################?????# | | != ^ ^ ^ #?????# | | ! #?????# | | """" """ """ """ """ """^""" """ ####### | | ""F" """ """ """ """ """ """ """ + | | """ """ """ """ """ """ """ ####### | | #?????# | | #?????# | | #### #?????# | | # #?????# | | + ##????### | +----------------------------------------------------+ Best States ------------- Heat Dissipation 64 Energy Generation 34 Energy Capacity 785 Matter Stores 300 Matter Capacity 450 Sight Range 16 Terrain Scan Density 10 Armor Coverage 225 Resistance: KI 30 Evasion (%) 61 Recoil Reduction 5 Offensive Hacking 12 Relay Coupler Types 1 Relay Coupler Value 22 Item Schematics ----------------- Arm. Wheel | -9/Recycling | Hacked Mak. Microdissipator Network | -7/Factory | Scanalyzed Robot Schematics ------------------ M-13 Machinist | -10/Materials | Hacked Y-54 Guardian | -7/Factory | Downloaded Fabricated ------------ Adv. Force Field | x2 | -6/Factory | Preloaded Repaired ---------- Lgt. Treads | 27% | -10/Materials Lgt. Treads | 48% | -10/Materials Lgt. Treads | 13% | -9/Materials Imp. Remote Datajack | 16% | -6/Factory | Broken Alien Tech Used ----------------- None Achievements -------------- None Challenges ------------ None Game ------ Seed PlexusEnergyMask Manual? 0 Play Time 03:48:55 Cumulative 970.1 hours Start 2025.06.25 @ 23:20:51 End 2025.06.26 @ 20:03:25 Sessions 3 Manual Loads 0 Difficulty Rogue Special Mode None Game No. 500 Rogue 500 Adventurer 0 Explorer 0 Win Type - Total 23 Types 10/4/3/0/1/1/2/2/0/0 Lore% 85 Gallery% 87 Achievement% 83 Wizard Run 0 Options --------- Layout 0 ASCII 0 Keyboard 0 Movement Numpad Keybinds 0 Fullscreen 2 Font 24/Smallcaps Map View 76x50 Zoom Use 0% Tactical HUD 1 Map Filters NONE Filters SHIFT_HUE(315) Steam 1 RUN: 365a8d4a-49fd-4dd4-9081-cda759baee80